Workbook

Sheet Period Summary
A1: Kalamazoo Count Accommodation Summary Report
D2: Collections for Month | E2: Dec 2016
A4: Location | B4: Reporting Period | C4: Transaction Date | D4: Total Revenue | E4: Transient Guest | F4: Net Revenue | G4: Fines | H4: Interest | I4: Adjustments | J4: Tax | K4: Note | W4: Dec 2016
A5: 40 Winks Motel | B5: Oct 2016 | C5: 2016-11-16 | D5: 5776.7 | E5: 0 | F5: 5776.7 | G5: 0 | H5: 0 | I5: 0 | J5: 288.84 | W5: Nov 2016
A6: Airport Inn | B6: Oct 2016 | C6: 2016-11-07 | D6: 387 | E6: 0 | F6: 387 | G6: 0 | H6: 0 | I6: 0 | J6: 19.35 | W6: Oct 2016
A7: American Hotel / Kal. Hampton Inn / GIA Hosp group | B7: Oct 2016 | C7: 2016-11-14 | D7: 40809.47 | E7: 0 | F7: 40809.47 | G7: 0 | H7: 0 | I7: 0 | J7: 2040.47 | W7: Sep 2016
A8: Baymont Inn & Suites/Kalamazoo Superior/ 11TH ST | B8: Oct 2016 | C8: 2016-11-15 | D8: 83449.24 | E8: 0 | F8: 83449.24 | G8: 0 | H8: 0 | I8: 0 | J8: 4172.46 | W8: Aug 2016
A9: Best Western Suite Kalamazoo/11th st/ | B9: Oct 2016 | C9: 2016-11-09 | D9: 90032.75 | E9: 0 | F9: 90032.75 | G9: 0 | H9: 0 | I9: 0 | J9: 4501.64 | W9: Jul 2016
A10: Candlewood Suites | B10: Oct 2016 | C10: 2016-11-17 | D10: 129576.8 | E10: 0 | F10: 129576.8 | G10: 0 | H10: 0 | I10: 0 | J10: 6478.84 | W10: Jun 2016
A11: Clarion fka Bestwestern/Vaidehi Inc. Court St./DEVI HOSP. | B11: Oct 2016 | C11: 2016-11-18 | D11: 66784.65 | E11: 0 | F11: 66784.65 | G11: 0 | H11: 0 | I11: 0 | J11: 3339.23 | W11: May 2016
A12: Clarion Hotel kna Four Points | B12: Oct 2016 | C12: 2016-11-16 | D12: 119413.49 | E12: 0 | F12: 119413.49 | G12: 0 | H12: 0 | I12: 0 | J12: 5970.48 | W12: Apr 2016
A13: Comfort Inn Kalamazoo / Reesha Property LLC DBA | B13: Oct 2016 | C13: 2016-11-15 | D13: 129328.5 | E13: 0 | F13: 129328.5 | G13: 0 | H13: 0 | I13: 0 | J13: 6466.43 | W13: Mar 2016
A14: Country Inn & Suites / On Shree Assoc LLC | B14: Oct 2016 | C14: 2016-11-22 | D14: 62217 | E14: 0 | F14: 62217 | G14: 0 | H14: 0 | I14: 0 | J14: 3111 | W14: Feb 2016
A15: Econo Lodge / VA Investments | B15: Oct 2016 | C15: 2016-11-16 | D15: 52110.93 | E15: 0 | F15: 52110.93 | G15: 0 | H15: 0 | I15: 0 | J15: 2605.55 | W15: Jan 2016
A16: Fairfield Inn Inc Kalamazoo Field Hotel/Cork Baymont Inn | B16: Oct 2016 | C16: 2016-11-16 | D16: 77074.49 | E16: 0 | F16: 77074.49 | G16: 0 | H16: 0 | I16: 0 | J16: 3853.72
A17: Fairfield Inn West - Kalamazoo / HRC Hotels | B17: Oct 2016 | C17: 2016-11-16 | D17: 124149.46 | E17: 0 | F17: 124149.46 | G17: 0 | H17: 0 | I17: 0 | J17: 6207.47 | K17: paid Nov 16, 2016 Revenue=$23872.00 5%=$1193.60 paid Nov 17, 2016 Revenue=$100277.46 5%=$5013.87
A18: Festive West Bed & Breakfest | B18: Oct 2016 | C18: 2016-11-15 | D18: 1634 | E18: 0 | F18: 1634 | G18: 0 | H18: 0 | I18: 0 | J18: 81.7
A19: Gull Lake Inn / Fore W Inc | B19: Oct 2016 | C19: 2016-11-17 | D19: 8971.06 | E19: 0 | F19: 8971.06 | G19: 0 | H19: 0 | I19: 0 | J19: 448.55
A20: Gull Lake View Golf Club | B20: Oct 2016 | C20: 2016-11-17 | D20: 83399.51 | E20: 0 | F20: 83399.51 | G20: 0 | H20: 0 | I20: 0 | J20: 4169.98
A21: Henderson Castle B & B | B21: Oct 2016 | C21: 2016-11-07 | D21: 10929.89 | E21: 0 | F21: 10929.89 | G21: 0 | H21: 0 | I21: 0 | J21: 546.49
A22: Holiday Inn West /Greenleaf Ventures Inc | B22: Oct 2016 | C22: 2016-11-22 | D22: 396269 | E22: 0 | F22: 396269 | G22: 0 | H22: 0 | I22: 0 | J22: 19813.46
A23: Holiday Motel | B23: Oct 2016 | C23: 2016-11-14 | D23: 1479.86 | E23: 0 | F23: 1479.86 | G23: 0 | H23: 0 | I23: 0 | J23: 73.99
A24: Inn of Kalamazoo / HRC Hotels LLC | B24: Oct 2016 | C24: 2016-11-16 | D24: 231932.6 | E24: 0 | F24: 231932.6 | G24: 0 | H24: 0 | I24: 0 | J24: 11596.63
A25: John Wickstrom B & B | B25: Oct 2016 | C25: 2016-11-17 | D25: 1554.05 | E25: 0 | F25: 1554.05 | G25: 0 | H25: 0 | I25: 0 | J25: 77.7
A26: Kalamazoo Holiday Inn Express / Sophia Hospitality | B26: Oct 2016 | C26: 2016-11-16 | D26: 100611.34 | E26: 0 | F26: 100611.34 | G26: 0 | H26: 0 | I26: 0 | J26: 5030.57
A27: Kalamazoo Hotel 2,dba Hampton Inn 2610 Airview Blvd | B27: Oct 2016 | C27: 2016-11-15 | D27: 229835.78 | E27: 0 | F27: 229835.78 | G27: 0 | H27: 0 | I27: 0 | J27: 11491.79
A28: Kalamazoo House B & B | B28: Oct 2016 | C28: 2016-11-08 | D28: 35720.8 | E28: 0 | F28: 35720.8 | G28: 0 | H28: 0 | I28: 0 | J28: 1786.04
A29: Kalamazoo Inn Motel | B29: Oct 2016 | C29: 2016-11-10 | D29: 2971.86 | E29: 0 | F29: 2971.86 | G29: 0 | H29: 0 | I29: 0 | J29: 148.59
A30: Karas Kottages LLC | B30: Oct 2016 | C30: 2016-11-15 | D30: 14890.75 | E30: 0 | F30: 14890.75 | G30: 0 | H30: 0 | I30: 0 | J30: 744.53
A31: Knights Inn | B31: Oct 2016 | C31: 2016-11-10 | D31: 8179.46 | E31: 0 | F31: 8179.46 | G31: 0 | H31: 0 | I31: 0 | J31: 408.89
A32: Microtel Inn & Suites | B32: Oct 2016 | C32: 2016-11-29 | D32: 97688.6 | E32: 0 | F32: 97688.6 | G32: 0 | H32: 0 | I32: 0 | J32: 4884.43
A33: nka Days Inn/America's Best Value Inn & Suites (fka Lee's Inn) | B33: Oct 2016 | C33: 2016-11-14 | D33: 18790.41 | E33: 0 | F33: 18790.41 | G33: 0 | H33: 0 | I33: 0 | J33: 939.52
A34: Peninsula Hotel Group, LLC (aka Staybridge Suites) | B34: Oct 2016 | C34: 2016-11-15 | D34: 214112.73 | E34: 0 | F34: 214112.73 | G34: 0 | H34: 0 | I34: 0 | J34: 10705.64
A35: Portage Courtyard | B35: Oct 2016 | C35: 2016-11-15 | D35: 329848.43 | E35: 0 | F35: 329848.43 | G35: 0 | H35: 0 | I35: 0 | J35: 16492.42
A36: Portage Homewood Suites | B36: Oct 2016 | C36: 2016-11-15 | D36: 268362.19 | E36: 0 | F36: 268362.19 | G36: 0 | H36: 0 | I36: 0 | J36: 13418.11
A37: Quality Hotel / Krishna Co | B37: Oct 2016 | C37: 2016-11-10 | D37: 38611.3 | E37: 0 | F37: 38611.3 | G37: 0 | H37: 0 | I37: 0 | J37: 1930.57
A38: Radisson Plaza Hotel / Greenleaf Ventures Inc | B38: Oct 2016 | C38: 2016-11-15 | D38: 1239179.4 | E38: 0 | F38: 1239179.4 | G38: 0 | H38: 0 | I38: 0 | J38: 61958.97
A39: Red Roof Inn #25 / R-Roof 6 LLC - 10025/MICHIGAN | B39: Oct 2016 | C39: 2016-11-22 | D39: 94349.54 | E39: 0 | F39: 94349.54 | G39: 0 | H39: 0 | I39: 0 | J39: 4717.48
A40: Residence Inn / ANR Kalamazoo | B40: Oct 2016 | C40: 2016-11-15 | D40: 215704.16 | E40: 36709.98 | F40: 178994.18 | G40: 0 | H40: 0 | I40: 0 | J40: 8949.71
A41: Stuart Avenue Inn | B41: Oct 2016 | C41: 2016-11-15 | D41: 8344.82 | E41: 0 | F41: 8344.82 | G41: 0 | H41: 0 | I41: 0 | J41: 417.24
A42: Sunstar Kalamazoo Inc / Motel 6 # | B42: Oct 2016 | C42: 2016-11-16 | D42: 84146.43 | E42: 31791.94 | F42: 52354.49 | G42: 0 | H42: 0 | I42: 0 | J42: 2617.72
A43: SUPER 8/RGA Corp. of Kalamazoo | B43: Oct 2016 | C43: 2016-11-29 | D43: 39368.99 | E43: 7513.97 | F43: 31855.02 | G43: 0 | H43: 0 | I43: 0 | J43: 1592.75
A44: Towne Place Suites | B44: Oct 2016 | C44: 2016-11-16 | D44: 162127.6 | E44: 0 | F44: 162127.6 | G44: 0 | H44: 0 | I44: 0 | J44: 8106.38
A45: Woodspring Suites | B45: Oct 2016 | C45: 2016-11-15 | D45: 113815.21 | E45: 0 | F45: 113815.21 | G45: 0 | H45: 0 | I45: 0 | J45: 5690.76
A56: Total | D56: =SUBTOTAL(109,Table1[Total Revenue]) -> 5033940.25 | E56: =SUBTOTAL(109,Table1[Transient Guest]) -> 76015.89 | F56: =SUBTOTAL(109,Table1[Net Revenue]) -> 4957924.36 | G56: =SUBTOTAL(109,Table1[Fines]) -> 0 | H56: =SUBTOTAL(109,Table1[Interest]) -> 0 | I56: =SUBTOTAL(109,Table1[Adjustments]) -> 0 | J56: =SUBTOTAL(109,Table1[Tax]) -> 247896.09

Sheet Recap
A1: Kalamazoo Count Accommodation Tax Distribution
D2: Collections for Period: | E2: Jun 2016
B4: Taxes | C4: Fines | D4: Interest | E4: Adjustments | F4: Collected | G4: Distribution | H4: Notes
A5: Forward | B5: 16673.14 | C5: 0 | D5: 0 | E5: 0 | F5: 311861.374 | G5: =F5 -> 311861.374
A6: Kalamazoo County Admin Fee (2016) | G6: 6250
A7: Net | G7: =G5-G6 -> 305611.374
A9: Discover Kalamazoo | G9: =G7*0.71 -> 216984.0755
A11: Parks Promotion | G11: 2166.67
A13: Kalamazoo County | G13: =G7-G9-G11 -> 86460.62846
E15: Total | G15: =SUM(G9:G13,G6) -> 311861.374

Sheet YearToDate
A1: Kalamazoo County Accommodation Taxes
E2: Year to Date Collections by Month | N2: Update
A4: Location | B4: Jan 2016 | C4: Feb 2016 | D4: Mar 2016 | E4: Apr 2016 | F4: May 2016 | G4: Jun 2016 | H4: Jul 2016 | I4: Aug 2016 | J4: Sep 2016 | K4: Oct 2016 | L4: Nov 2016 | M4: Dec 2016 | N4: Totals
A5: 40 Winks Motel | B5: 192.72 | C5: 224.27 | D5: 271.84 | E5: 305.34 | F5: 280.58 | G5: 255.34 | H5: 303.4 | I5: 259.39 | J5: 283.5 | K5: 253.89 | L5: 288.84 | M5: 286.41 | N5: =SUM(Table2[[#This Row],[Jan 2016]:[Dec 2016]]) -> 3205.52
A6: Airport Inn | B6: 53.5 | C6: 68.25 | D6: 37.4 | E6: 82.45 | F6: 14.2 | G6: 36.5 | H6: 95.25 | I6: 172.5 | J6: 191.9 | K6: 115.75 | L6: 19.35 | N6: =SUM(Table2[[#This Row],[Jan 2016]:[Dec 2016]]) -> 887.05
A7: American Hotel / Kal. Hampton Inn / GIA Hosp group | B7: 975.48 | C7: 758.33 | D7: 1955.97 | E7: 1468.7 | F7: 1983.25 | G7: 0 | H7: 5308.38 | I7: 2827.5 | J7: 2645.06 | K7: 1134.47 | L7: 2040.47 | M7: 1289.52 | N7: =SUM(Table2[[#This Row],[Jan 2016]:[Dec 2016]]) -> 22387.13
A8: Baymont Inn & Suites/Kalamazoo Superior/ 11TH ST | B8: 2351.31 | C8: 2003.05 | D8: 3942.81 | E8: 3434.72 | F8: 4659.01 | G8: 4499.19 | H8: 4860.79 | I8: 5076.86 | J8: 5706.25 | K8: 5386.58 | L8: 4172.46 | N8: =SUM(Table2[[#This Row],[Jan 2016]:[Dec 2016]]) -> 46093.03
A9: Best Western Suite Kalamazoo/11th st/ | B9: 3978.51 | C9: 2337.66 | D9: 3733.52 | E9: 3939.38 | F9: 3550.68 | G9: 3946.08 | H9: 5936.34 | I9: 5943.86 | J9: 6394.87 | K9: 5601.07 | L9: 4501.64 | N9: =SUM(Table2[[#This Row],[Jan 2016]:[Dec 2016]]) -> 49863.61
A10: Candlewood Suites | B10: 2849.56 | C10: 3707.82 | D10: 5013.66 | E10: 5065.21 | F10: 4952.2 | G10: 6900.38 | H10: 7372.02 | I10: 5079.6 | J10: 6509.72 | K10: 5943.05 | L10: 6478.84 | M10: 4428.17 | N10: =SUM(Table2[[#This Row],[Jan 2016]:[Dec 2016]]) -> 64300.23
A11: Clarion fka Bestwestern/Vaidehi Inc. Court St./DEVI HOSP. | B11: 2377.83 | C11: 2057.62 | D11: 2400.82 | E11: 8058.63 | F11: 3219.68 | G11: 3836.21 | H11: 3750 | I11: 3885.09 | J11: 4010.18 | K11: 3828.15 | L11: 3339.23 | M11: 2658.92 | N11: =SUM(Table2[[#This Row],[Jan 2016]:[Dec 2016]]) -> 43422.36
A12: Clarion Hotel kna Four Points | B12: 7019.71 | C12: 5274.66 | D12: 5624.82 | E12: 5779.57 | F12: 5952.27 | G12: 6115.22 | H12: 6352.49 | I12: 6986.51 | J12: 6902.92 | K12: 6500.22 | L12: 5970.48 | M12: 5879.96 | N12: =SUM(Table2[[#This Row],[Jan 2016]:[Dec 2016]]) -> 74358.83
A13: Comfort Inn Kalamazoo / Reesha Property LLC DBA | B13: 2884.25 | C13: 3157.23 | D13: 4368.25 | E13: 3595.32 | F13: 4590.79 | G13: 5114.65 | H13: 5995.86 | I13: 5995.86 | J13: 6187.25 | K13: 5628.56 | L13: 6466.43 | M13: 3121.62 | N13: =SUM(Table2[[#This Row],[Jan 2016]:[Dec 2016]]) -> 57106.07
A14: Comstock Motor Court | B14: 110.47 | C14: 78.22 | D14: 85.57 | E14: 62.13 | F14: 33.3 | G14: 0 | H14: 5.31 | I14: 63.6 | J14: 81.67 | K14: 74.19 | M14: 88.94 | N14: =SUM(Table2[[#This Row],[Jan 2016]:[Dec 2016]]) -> 683.4
A15: Country Inn & Suites / On Shree Assoc LLC | B15: 2463 | C15: 2126 | D15: 4278 | E15: 3097 | G15: 9154.1 | H15: 6314 | I15: 5049 | K15: 11106 | L15: 3111 | N15: =SUM(Table2[[#This Row],[Jan 2016]:[Dec 2016]]) -> 46698.1
A16: Econo Lodge / VA Investments | B16: 1293.19 | C16: 1586.82 | D16: 2182.33 | E16: 2079.77 | F16: 2385.42 | G16: 2955.69 | H16: 3488.13 | I16: 3798.44 | J16: 3528.75 | K16: 3046.94 | L16: 2605.55 | N16: =SUM(Table2[[#This Row],[Jan 2016]:[Dec 2016]]) -> 28951.03
A17: Fairfield Inn Inc Kalamazoo Field Hotel/Cork Baymont Inn | B17: 1660.56 | C17: 1648.84 | D17: 2878.6 | E17: 2060.8 | F17: 2570.13 | G17: 3850.37 | H17: 4823.93 | I17: 4284.08 | J17: 5018.03 | K17: 4677.16 | L17: 3853.72 | M17: 3527.21 | N17: =SUM(Table2[[#This Row],[Jan 2016]:[Dec 2016]]) -> 40853.43
A18: Fairfield Inn West - Kalamazoo / HRC Hotels | B18: 2979.22 | C18: 2955.67 | D18: 4457.18 | E18: 4367.71 | F18: 4976.64 | G18: 6194.85 | H18: 6798.44 | I18: 6633.88 | J18: 7060.75 | K18: 6203.57 | L18: 6207.47 | M18: 4117.24 | N18: =SUM(Table2[[#This Row],[Jan 2016]:[Dec 2016]]) -> 62952.62
A19: Festive West Bed & BreakFest | I19: 18.35 | J19: 19.65 | K19: 102.94 | L19: 81.7 | M19: 34.88 | N19: =SUM(Table2[[#This Row],[Jan 2016]:[Dec 2016]]) -> 257.52
A20: Gull Lake Inn / Fore W Inc | B20: 0 | C20: 0 | D20: 0 | E20: 0 | F20: 0 | G20: 1352.91 | H20: 3224.87 | I20: 2358.94 | J20: 2912.27 | K20: 2000.85 | L20: 448.55 | N20: =SUM(Table2[[#This Row],[Jan 2016]:[Dec 2016]]) -> 12298.39
A21: Gull Lake View Golf Club | B21: 345.13 | C21: 167.87 | D21: 350.57 | E21: 179.75 | F21: 3454.85 | G21: 9956.88 | H21: 23148.28 | I21: 21977.12 | J21: 19993.51 | K21: 22625.23 | L21: 4169.98 | M21: 168.54 | N21: =SUM(Table2[[#This Row],[Jan 2016]:[Dec 2016]]) -> 106537.71
A22: Henderson Castle B & B | B22: 532.93 | C22: 512.81 | D22: 0 | E22: 0 | F22: 1583.96 | G22: 0 | H22: 981.91 | I22: 0 | J22: 1145.4 | K22: 0 | M22: 484.11 | N22: =SUM(Table2[[#This Row],[Jan 2016]:[Dec 2016]]) -> 5241.12
A23: Holiday Inn West /Greenleaf Ventures Inc | B23: 11091.72 | C23: 10486.25 | D23: 15914.19 | E23: 18465.05 | F23: 17518 | G23: 19054.97 | H23: 22034 | I23: 22196 | J23: 23178 | K23: 20639 | L23: 19813.46 | M23: 15481.1 | N23: =SUM(Table2[[#This Row],[Jan 2016]:[Dec 2016]]) -> 215871.74
A24: Holiday Motel | B24: 80.06 | C24: 61.81 | D24: 66.08 | E24: 105.31 | F24: 81.9 | G24: 84.08 | H24: 81.56 | I24: 91.59 | J24: 94.58 | K24: 105.31 | L24: 73.99 | N24: =SUM(Table2[[#This Row],[Jan 2016]:[Dec 2016]]) -> 926.27
A25: Inn of Kalamazoo / HRC Hotels LLC | B25: 5972.12 | C25: 5759.51 | D25: 8759.18 | E25: 7998.95 | F25: 8783.52 | G25: 9789.05 | H25: 11978.23 | I25: 10664.38 | J25: 12033.18 | K25: 10524.11 | L25: 11596.63 | M25: 8174.81 | N25: =SUM(Table2[[#This Row],[Jan 2016]:[Dec 2016]]) -> 112033.67
A26: John Wickstrom B & B | B26: 41.9 | C26: 0 | D26: 0 | E26: 0 | F26: 0 | G26: 50.63 | H26: 123.38 | I26: 11.13 | J26: 0 | K26: 102.66 | L26: 77.7 | M26: 118.33 | N26: =SUM(Table2[[#This Row],[Jan 2016]:[Dec 2016]]) -> 525.73
A27: Kalamazoo Holiday Inn Express / Sophia Hospitality | B27: 4759.72 | C27: 4155.18 | D27: 4419.76 | E27: 4674.78 | F27: 4700.57 | G27: 4761.96 | H27: 5001.74 | I27: 5529.72 | J27: 5419.73 | K27: 5159.73 | L27: 5030.57 | M27: 5093.73 | N27: =SUM(Table2[[#This Row],[Jan 2016]:[Dec 2016]]) -> 58707.19
A28: Kalamazoo Hotel 2,dba Hampton Inn 2610 Airview Blvd | B28: 5569.23 | C28: 6382.65 | D28: 9271.03 | E28: 10292.55 | F28: 9382.1 | G28: 11654.23 | H28: 12472.97 | I28: 12068.22 | J28: 12063.03 | K28: 10902.43 | L28: 11491.79 | M28: 8953.77 | N28: =SUM(Table2[[#This Row],[Jan 2016]:[Dec 2016]]) -> 120504
A29: Kalamazoo House B & B | B29: 1035.28 | C29: 1053.41 | D29: 1567.7 | E29: 1056.67 | F29: 1123.64 | G29: 1640.7 | H29: 1557.98 | I29: 1580.06 | J29: 1561.43 | K29: 1295.8 | L29: 1786.04 | M29: 1149.38 | N29: =SUM(Table2[[#This Row],[Jan 2016]:[Dec 2016]]) -> 16408.09
A30: Kalamazoo Inn Motel | B30: 132.45 | C30: 123.59 | D30: 148.56 | E30: 148.56 | F30: 132.49 | G30: 132.09 | H30: 117.34 | I30: 206.56 | J30: 148.59 | K30: 165.48 | L30: 148.59 | N30: =SUM(Table2[[#This Row],[Jan 2016]:[Dec 2016]]) -> 1604.3
A31: Karas Kottages LLC | B31: 371.78 | C31: 252.1 | D31: 341.06 | E31: 382.78 | F31: 496.12 | G31: 759.46 | H31: 732.4 | I31: 645.37 | J31: 760.32 | K31: 621.23 | L31: 744.53 | M31: 579.1 | N31: =SUM(Table2[[#This Row],[Jan 2016]:[Dec 2016]]) -> 6686.25
A32: Knights Inn | B32: 301.55 | C32: 401.56 | D32: 418.01 | E32: 419.51 | F32: 611.53 | G32: 569.08 | H32: 416.3 | I32: 618.51 | J32: 660.54 | K32: 433.99 | L32: 408.89 | N32: =SUM(Table2[[#This Row],[Jan 2016]:[Dec 2016]]) -> 5259.47
A33: MCR Tenant 2 | B33: 4193 | C33: 4118.05 | D33: 4525.4 | E33: 5103.45 | F33: 4913.9 | G33: 5642.85 | H33: 5690.25 | I33: 6003.5 | J33: 4376.55 | K33: 0 | N33: =SUM(Table2[[#This Row],[Jan 2016]:[Dec 2016]]) -> 44566.95
A34: Microtel Inn & Suites | B34: 2678.25 | C34: 2495.72 | D34: 3523.58 | E34: 2240.85 | F34: 0 | G34: 9579.99 | H34: 0 | I34: 13357.17 | K34: 11814.17 | L34: 4884.43 | M34: 3628.58 | N34: =SUM(Table2[[#This Row],[Jan 2016]:[Dec 2016]]) -> 54202.74
A35: nka Days Inn/America's Best Value Inn & Suites (fka Lee's Inn) | B35: 631.5 | C35: 841.53 | D35: 969.53 | E35: 1019.5 | F35: 919.52 | G35: 1324.58 | H35: 1184.53 | I35: 2063.03 | J35: 1835.92 | K35: 1390.08 | L35: 939.52 | N35: =SUM(Table2[[#This Row],[Jan 2016]:[Dec 2016]]) -> 13119.24
A36: Peninsula Hotel Group, LLC (aka Staybridge Suites) | B36: 6063.83 | C36: 7061.57 | D36: 7197.21 | E36: 7966.81 | F36: 8629.09 | G36: 9497.67 | H36: 10256.39 | I36: 11648.64 | J36: 11396.76 | K36: 10866.77 | L36: 10705.64 | M36: 8622.78 | N36: =SUM(Table2[[#This Row],[Jan 2016]:[Dec 2016]]) -> 109913.16
A37: Portage Courtyard | B37: 9806.15 | C37: 11066.64 | D37: 13791.77 | E37: 13135.43 | F37: 13441.63 | G37: 14207.22 | H37: 15699.56 | I37: 14454.84 | J37: 16104.88 | K37: 14842.29 | L37: 16492.42 | M37: 12856.35 | N37: =SUM(Table2[[#This Row],[Jan 2016]:[Dec 2016]]) -> 165899.18
A38: Portage Homewood Suites | B38: 8922.84 | C38: 9303.83 | D38: 14176.46 | E38: 14670.72 | F38: 13312.7 | G38: 13417.92 | H38: 13513.74 | I38: 13637.24 | J38: 15746.74 | K38: 14536.89 | L38: 13418.11 | M38: 13269.33 | N38: =SUM(Table2[[#This Row],[Jan 2016]:[Dec 2016]]) -> 157926.52
A39: Quality Hotel / Krishna Co | B39: 1187.83 | C39: 1241.57 | D39: 1624.48 | E39: 1548.3 | F39: 1871.27 | G39: 2515.65 | H39: 2795.21 | I39: 3400.84 | J39: 3173.38 | K39: 2540.56 | L39: 1930.57 | M39: 1211.25 | N39: =SUM(Table2[[#This Row],[Jan 2016]:[Dec 2016]]) -> 25040.91
A40: Radisson Plaza Hotel / Greenleaf Ventures Inc | B40: 39171.66 | C40: 37458.87 | D40: 52382.59 | E40: 46271.62 | F40: 0 | G40: 110311.17 | H40: 59578.62 | I40: 52445.13 | J40: 58356.51 | K40: 51510.02 | L40: 61958.97 | M40: 49638.57 | N40: =SUM(Table2[[#This Row],[Jan 2016]:[Dec 2016]]) -> 619083.73
A41: Red Roof Inn #03 / R-Roof 6 LLC - 10003/CORK | B41: 2371.06 | D41: 2312.81 | E41: 3138.48 | F41: 3132.2 | G41: 3719.93 | H41: 4604.87 | I41: 10072.28 | J41: 4766.2 | K41: 4531.62 | M41: 8737.24 | N41: =SUM(Table2[[#This Row],[Jan 2016]:[Dec 2016]]) -> 47386.69
A42: Red Roof Inn #25 / R-Roof 6 LLC - 10025/MICHIGAN | B42: 3530.13 | C42: 2548.95 | D42: 3383.78 | E42: 4190.25 | F42: 4561.66 | G42: 5689.09 | H42: 6226.13 | I42: 7815.29 | J42: 6202.53 | K42: 5786.57 | L42: 4717.48 | N42: =SUM(Table2[[#This Row],[Jan 2016]:[Dec 2016]]) -> 54651.86
A43: Residence Inn / ANR Kalamazoo | B43: 6290.72 | C43: 6142.04 | D43: 6899.49 | E43: 6906.3 | F43: 8021.6 | G43: 9987.42 | H43: 10506.91 | I43: 10739.64 | J43: 10297.6 | K43: 8101.67 | L43: 8949.71 | M43: 7904.25 | N43: =SUM(Table2[[#This Row],[Jan 2016]:[Dec 2016]]) -> 100747.35
A44: Stuart Avenue Inn | B44: 139.5 | C44: 159.43 | D44: 236.11 | E44: 222.71 | F44: 111.75 | G44: 428.83 | H44: 469.22 | I44: 242.3 | J44: 473.21 | K44: 226.11 | L44: 417.24 | M44: 206.41 | N44: =SUM(Table2[[#This Row],[Jan 2016]:[Dec 2016]]) -> 3332.82
A45: Sunstar Kalamazoo Inc / Motel 6 # | B45: 1402.83 | C45: 1593.19 | D45: 2023.59 | E45: 2350.95 | F45: 2268.82 | G45: 2270.65 | H45: 2967.29 | I45: 3818.24 | J45: 1483.35 | K45: 2394.65 | L45: 2617.72 | N45: =SUM(Table2[[#This Row],[Jan 2016]:[Dec 2016]]) -> 25191.28
A46: SUPER 8/RGA Corp. of Kalamazoo | B46: 1256.42 | C46: 1203.8 | D46: 1409.18 | E46: 1424.72 | F46: 1234.5 | G46: 2441.59 | H46: 2418.84 | I46: 1140.39 | J46: 2256.57 | K46: 2256.57 | L46: 1592.75 | N46: =SUM(Table2[[#This Row],[Jan 2016]:[Dec 2016]]) -> 18635.33
A47: Towne Place Suites | B47: 4945.74 | C47: 3835.73 | D47: 5708.78 | E47: 5086.09 | F47: 5565.45 | G47: 8162.07 | H47: 9000 | I47: 9229.79 | J47: 8643.51 | K47: 8051.75 | L47: 8106.38 | M47: 6564.2 | N47: =SUM(Table2[[#This Row],[Jan 2016]:[Dec 2016]]) -> 82899.49
A48: Woodspring Suites | J48: 1719.24 | K48: 5890.24 | L48: 5690.76 | M48: 5403.3 | N48: =SUM(Table2[[#This Row],[Jan 2016]:[Dec 2016]]) -> 18703.54
A49: Total | B49: =SUBTOTAL(109,Table2[Jan 2016]) -> 154014.64 | C49: =SUBTOTAL(109,Table2[Feb 2016]) -> 146412.1 | D49: =SUBTOTAL(109,Table2[Mar 2016]) -> 202651.67 | E49: =SUBTOTAL(109,Table2[Apr 2016]) -> 202396.82 | F49: =SUBTOTAL(109,Table2[May 2016]) -> 155020.92 | G49: =SUBTOTAL(109,Table2[Jun 2016]) -> 311861.25 | H49: =SUBTOTAL(109,Table2[Jul 2016]) -> 288186.86 | I49: =SUBTOTAL(109,Table2[Aug 2016]) -> 294090.44 | J49: =SUBTOTAL(109,Table2[Sep 2016]) -> 281344.03 | K49: =SUBTOTAL(109,Table2[Oct 2016]) -> 278918.32 | L49: =SUBTOTAL(109,Table2[Nov 2016]) -> 247349.6 | M49: =SUBTOTAL(109,Table2[Dec 2016]) -> 183678 | N49: =SUBTOTAL(109,Table2[Totals]) -> 2745924.65
